Workbook

Sheet 1нед мясное
A1: Школа | B1: - | E1: Отд./корп | I1: День
A3: Прием пищи | B3: Раздел | C3: № рец. | D3: Блюдо | E3: Выход, г | F3: Цена | G3: Калорийность | H3: Белки | I3: Жиры | J3: Углеводы
A4: Завтрак | B4: гор.блюдо | C4: ТТК 2022 г | D4: Ёжики мясные с рисом в соусе томатном | E4: 100 | G4: 93.00 | H4: 5.56 | I4: 7.42 | J4: 1.01
A5: понедельник | B5: напиток | C5: №348/2015 | D5: Компот из плодов сушеных (урюк) | E5: 200 | G5: 87.00 | H5: 1.00 | I5: 0.08 | J5: 20.56
B6: хлеб | D6: Хлеб ржано-пшеничный / хлеб пшеничный | E6: 40 | G6: 91.00 | H6: 2.52 | I6: 0.36 | J6: 18.84
B7: гарнир | C7: № 202/2015 г | D7: Макаронные изделия отварные | E7: 160 | G7: 221.00 | H7: 6.02 | I7: 4.76 | J7: 38.34
B8: холодные закуски | C8: № 15/2015 г / № 23/2015 г | D8: Салат из свежих помидоров / сыр порциями | E8: 70 | G8: 83.00 | H8: 3.30 | I8: 6.37 | J8: 2.77
B9: мучные или кондитерские изделия
B10: фрукты
B11: кисломолочный продукт
A12: ИТОГО | E12: 570 | F12: 62.10 | G12: 575.00 | H12: 18.40 | I12: 18.99 | J12: 81.52
A13: Завтрак | B13: гор.блюдо | C13: ТТК 2021 г | D13: Жаркое из птицы | E13: 160 | G13: 246.00 | H13: 11.77 | I13: 12.05 | J13: 22.53
A14: вторник | B14: напиток | C14: ТТК 2021 г | D14: Чай с сахаром | E14: 208 | G14: 41.00 | H14: 0.01 | J14: 10.17
B15: хлеб | D15: Хлеб ржано-пшеничный | E15: 20 | G15: 44.00 | H15: 1.00 | I15: 0.20 | J15: 9.00
B16: гарнир
B17: холодные закуски | C17: № 45/2015 г | D17: Салат из белокочанной капусты | E17: 60 | G17: 54.00 | H17: 0.93 | I17: 3.05 | J17: 5.64
B18: мучные или кондитерские изделия | C18: Акт 2018 г | D18: Блинчики с сгущенным молоком | E18: 55 | G18: 85.00 | H18: 2.19 | I18: 2.52 | J18: 13.50
B19: фрукты | C19: № 338/2015г | D19: Плоды свежие (яблоки) | E19: 120 | G19: 56.00 | H19: 0.48 | I19: 0.48 | J19: 11.76
B20: кисломолочный продукт
A21: ИТОГО | E21: 623 | F21: 62.10 | G21: 526.00 | H21: 16.38 | I21: 18.30 | J21: 72.60
A22: Завтрак | B22: гор.блюдо | C22: ТТК 2021 г | D22: Гуляш из филе индейки | E22: 90 | G22: 147 | H22: 9.03 | I22: 8.6 | J22: 8.20
A23: среда | B23: напиток | C23: ТТК 2021 г | D23: Чай с сахаром, лимоном | E23: 215 | G23: 32 | H23: 0.02 | I23: 0.01 | J23: 7.99
B24: хлеб | D24: Хлеб ржано-пшеничный / хлеб пшеничный | E24: 35 | G24: 79.00 | H24: 2.14 | I24: 0.32 | J24: 16.38
B25: гарнир | C25: №302/2015 г | D25: Каша гречневая рассыпчатая | E25: 150 | G25: 242 | H25: 6.62 | I25: 5.39 | J25: 41.87
B26: холодные закуски | C26: № 71/2015 г | D26: Овощи натуральные свежие (помидоры) | E26: 60 | G26: 14 | H26: 0.66 | I26: 0.12 | J26: 2.28
B27: мучные или кондитерские изделия | D27: Печенье | E27: 15 | G27: 78.00 | H27: 1.21 | I27: 3.62 | J27: 10.25
B28: фрукты
B29: кисломолочный продукт
A30: ИТОГО | E30: 565 | F30: 62.10 | G30: 592.00 | H30: 19.68 | I30: 18.06 | J30: 86.97
A31: Завтрак | B31: гор.блюдо | C31: ТТК 2021 г | D31: Плов с курицей | E31: 200 | G31: 244.00 | H31: 12.42 | I31: 10.01 | J31: 26.01
A32: четверг | B32: напиток | C32: ТТК 2021 г | D32: Компот из замороженной компотной смеси | E32: 200 | G32: 46.00 | H32: 0.13 | I32: 0.02 | J32: 11.15
B33: хлеб | D33: Хлеб ржано-пшеничный / хлеб пшеничный | E33: 35 | G33: 79.00 | H33: 2.14 | I33: 0.32 | J33: 16.38
B34: гарнир
B35: холодные закуски | C35: № 15/2015 г / ТТК | D35: Сыр порциями / Салат из моркови | E35: 70 | G35: 130.00 | H35: 3.26 | I35: 8.7 | J35: 9.34
B36: мучные или кондитерские изделия
B37: фрукты | D37: Плоды свежие (яблоки) | E37: 120 | G37: 56.00 | H37: 0.48 | I37: 0.48 | J37: 11.76
B38: кисломолочный продукт
A39: ИТОГО | E39: 625 | F39: 62.10 | G39: 555.00 | H39: 18.43 | I39: 19.53 | J39: 74.64
A40: Завтрак | B40: гор.блюдо | C40: ТТК 2021 г | D40: Биточки рыбные из минтая с соусом томатным | E40: 90 | G40: 115 | H40: 9.25 | I40: 7.66 | J40: 2.05
A41: пятница | B41: напиток | C41: №348/2015 | D41: Чай с сахаром | E41: 208 | G41: 87 | H41: 1.00 | I41: 0.08 | J41: 20.56
B42: хлеб | D42: Хлеб ржано-пшеничный / хлеб пшеничный | E42: 35 | G42: 79.00 | H42: 2.14 | I42: 0.32 | J42: 16.38
B43: гарнир | C43: № 312/2015г | D43: Пюре картофельное | E43: 160 | G43: 155 | H43: 3.5 | I43: 4.96 | J43: 23.49
B44: холодные закуски | C44: № 53/Саратов | D44: Салат "Витаминный" | E44: 60 | G44: 59 | H44: 0.79 | I44: 3.1 | J44: 6.71
B45: мучные или кондитерские изделия | C45: Акт 2018 г | D45: Блинчики с сгущенным молоком | E45: 55 | G45: 85 | H45: 2.19 | I45: 2.52 | J45: 13.5
B46: фрукты
B47: кисломолочный продукт
A48: ИТОГО | E48: 613 | F48: 62.10 | G48: 592 | H48: 19.25 | I48: 18.68 | J48: 85.15
A49: Завтрак | B49: гор.блюдо | C49: № 243/2015г | D49: Сосиски отварные | E49: 100 | G49: 132 | H49: 9.40 | I49: 10.10 | J49: 0.80
A50: суббота | B50: напиток | C50: ТТК 2021 г | D50: Чай с сахаром, лимоном | E50: 218 | G50: 32 | H50: 0.02 | I50: 0.01 | J50: 7.99
B51: хлеб | D51: Хлеб ржано-пшеничный / хлеб пшеничный | E51: 35 | G51: 79.00 | H51: 2.14 | I51: 0.32 | J51: 16.38
B52: гарнир | C52: № 202/2015 г | D52: Макаронные изделия отварные | E52: 150 | G52: 212 | H52: 5.60 | I52: 5.06 | J52: 35.91
B53: холодные закуски | C53: № 71/2015 г | D53: Овощи натуральные свежие (огурцы) | E53: 60 | G53: 7 | H53: 0.42 | I53: 0.06 | J53: 1.14
B54: фрукты
B55: кисломолочный продукт
A56: ИТОГО | E56: 583 | G56: 552 | H56: 19.17 | I56: 19.21 | J56: 74.93

Sheet 2 нед мясное
A1: Школа | B1: - | E1: Отд./корп | I1: День
A3: Прием пищи | B3: Раздел | C3: № рец. | D3: Блюдо | E3: Выход, г | F3: Цена | G3: Калорийность | H3: Белки | I3: Жиры | J3: Углеводы
A4: Завтрак | B4: гор.блюдо | C4: ТТК2020 г | D4: Тефтели из говядины в соусе томатном | E4: 110 | G4: 142 | H4: 9.24 | I4: 7.83 | J4: 8.46
A5: понедельник | B5: напиток | C5: ТТК 2021 г | D5: Компот из свежих плодов (яблоки) | E5: 200 | G5: 49 | H5: 0.08 | I5: 0.08 | J5: 11.94
B6: хлеб | D6: Хлеб ржано-пшеничный/хлеб пшеничный | E6: 45 | G6: 103.00 | H6: 2.90 | I6: 0.40 | J6: 21.30
B7: гарнир | C7: №304/2015г | D7: Рис отварной | E7: 150 | G7: 224 | H7: 3.83 | I7: 5.43 | J7: 40.01
B8: холодные закуски | C8: № 23/2015 и №15/2015 | D8: Салат из свежих помидоров и сыр порциями | E8: 70 | G8: 83.00 | H8: 3.30 | I8: 6.37 | J8: 2.77
B9: мучные или кондитерские изделия
B10: фрукты
B11: кисломолочный продукт
A12: ИТОГО | E12: 575 | F12: 62.10 | G12: =G4+G5+G6+G7+G8 -> 601.00 | H12: =H4+H5+H6+H7+H8 -> 19.35 | I12: 20.11 | J12: 84.48
A13: Завтрак | B13: гор.блюдо | C13: ТТК 2021 г | D13: Рагу из куриных грудок | E13: 160 | G13: 332.00 | H13: 12.63 | I13: 15.18 | J13: 36.16
A14: вторник | B14: напиток | C14: ТТК 2021 г | D14: Напиток лимонный | E14: 200 | G14: 34.00 | H14: 0.07 | I14: 0.01 | J14: 8.13
B15: хлеб | D15: Хлеб ржано-пшеничный/хлеб пшеничный | E15: 40 | G15: 91.00 | H15: 2.52 | I15: 0.36 | J15: 18.84
B16: гарнир
B17: холодные закуски | C17: № 71/2015 г | D17: Овощи натуральные свежие (огурцы) | E17: 60 | G17: 7.00 | H17: 0.42 | I17: 0.06 | J17: 1.14
B18: мучные или кондитерские изделия | C18: АКТ 2019 | D18: Печенье | E18: 15 | G18: 78.00 | H18: 1.21 | I18: 3.62 | J18: 10.25
B19: фрукты | C19: № 338/2015г | D19: Плоды свежие (яблоки) | E19: 120 | G19: 56.00 | H19: 0.48 | I19: 0.48 | J19: 11.76
B20: кисломолочный продукт
A21: ИТОГО | E21: 595 | F21: 62.10 | G21: =SUM(G13:G19) -> 598.00 | H21: =SUM(H13:H19) -> 17.33 | I21: =SUM(I13:I19) -> 19.71 | J21: =SUM(J13:J19) -> 86.28
A22: Завтрак | B22: гор.блюдо | C22: ТТК 2022 г | D22: Котлеты "Аппетитные" мясо - куриные с соусом томатным | E22: 90 | G22: 137 | H22: 9.1 | I22: 11.08 | J22: 0.2
A23: среда | B23: напиток | C23: №348/2015 | D23: Чай с сахаром | E23: 208 | G23: 87 | H23: 1.00 | I23: 0.08 | J23: 20.56
B24: хлеб | D24: Хлеб ржано - пшеничный | E24: 25 | G24: 55 | H24: 1.25 | I24: 0.25 | J24: 11.25
B25: гарнир | C25: № 202/2015 г | D25: Макаронные изделия отварные | E25: 150 | G25: 212 | H25: 5.60 | I25: 5.06 | J25: 35.91
B26: холодные закуски | C26: № 71/2015 г | D26: Овощи натуральные свежие (помидоры) | E26: 60 | G26: 14 | H26: 0.66 | I26: 0.12 | J26: 2.28
B27: мучные или кондитерские изделия | C27: Акт 2018 г | D27: Блинчики с сгущенным молоком | E27: 55 | G27: 85 | H27: 2.19 | I27: 2.52 | J27: 13.5
B28: фрукты
B29: кисломолочный продукт
A30: ИТОГО | E30: =SUM(E22:E27) -> 588 | F30: 62.10 | G30: =SUM(G22:G27) -> 590.00 | H30: =SUM(H22:H27) -> 19.80 | I30: =SUM(I22:I27) -> 19.11 | J30: =SUM(J22:J27) -> 83.70
A31: Завтрак | B31: гор.блюдо | C31: ТТК 2021 г | D31: Плов с курицей | E31: 200 | G31: 257 | H31: 13.42 | I31: 11.01 | J31: 26.01
A32: четверг | B32: напиток | C32: ТТК 2021 г | D32: Компот из замороженной компотной смеси | E32: 200 | G32: 46 | H32: 0.13 | I32: 0.02 | J32: 11.15
B33: хлеб | D33: Хлеб ржано-пшеничный/хлеб пшеничный | E33: 35 | G33: 79.00 | H33: 2.14 | I33: 0.32 | J33: 16.38
B34: гарнир
B35: холодные закуски | C35: ТТК и №15/2015 | D35: Салат из моркови и сыр порциями | E35: 70 | G35: 130.00 | H35: 3.26 | I35: 8.7 | J35: 9.34
B36: мучные или кондитерские изделия
B37: фрукты | C37: № 338/2015г | D37: Плоды свежие (яблоки) | E37: 120 | G37: 56.00 | H37: 0.48 | I37: 0.48 | J37: 11.76
B38: кисломолочный продукт
A39: ИТОГО | E39: =SUM(E31:E37) -> 625 | F39: 62.10 | G39: =G31+G32+G33+G35+G37 -> 568.00 | H39: =H31+H32+H33+H35+H37 -> 19.43 | I39: 20.53 | J39: 74.64
A40: Завтрак | B40: гор.блюдо | C40: ТТК 2021 г | D40: Гуляш из филе индейки | E40: 90 | G40: 147 | H40: 9.03 | I40: 8.6 | J40: 8.20
A41: пятница | B41: напиток | C41: ТТК 2021 г | D41: Чай с сахаром | E41: 208 | G41: 32 | H41: 0.02 | I41: 0.01 | J41: 7.99
B42: хлеб | D42: Хлеб ржано-пшеничный/хлеб пшеничный | E42: 40 | G42: 91.00 | H42: 2.52 | I42: 0.36 | J42: 18.84
B43: гарнир | C43: № 312/2015г | D43: Пюре картофельное | E43: 150 | G43: 146 | H43: 3.28 | I43: 4.65 | J43: 22.02
B44: холодные закуски | C44: № 45/2015 г | D44: Салат из белокачанной капусты | E44: 60 | G44: 54 | H44: 0.93 | I44: 3.05 | J44: 5.64
B45: мучные или кондитерские изделия | C45: АКТ 2019 | D45: Печенье | E45: 15 | G45: 78 | H45: 1.21 | I45: 3.62 | J45: 10.25
B46: фрукты
B47: кисломолочный продукт
A48: ИТОГО | E48: =SUM(E40:E45) -> 563 | F48: 62.10 | G48: =SUM(G40:G45) -> 548 | H48: =SUM(H40:H45) -> 16.99 | I48: =SUM(I40:I45) -> 20.29 | J48: =SUM(J40:J45) -> 72.94
A49: Завтрак | B49: гор.блюдо | C49: Акт 2020 г | D49: Пельмени "Для Умников и умниц" отварные с соусом "Переменка" | E49: 160 | G49: 331 | H49: 14.04 | I49: 16.38 | J49: 31.81
A50: суббота | B50: напиток | C50: ТТК 2021 г | D50: Чай с сахаром, лимоном | E50: 213 | G50: 34 | H50: 0.07 | I50: 0.01 | J50: 8.13
B51: хлеб | D51: Хлеб ржано-пшеничный/хлеб пшеничный | E51: 40 | G51: 91.00 | H51: 2.52 | I51: 0.36 | J51: 18.84
B52: гарнир
B53: холодные закуски | C53: № 15/2015 г | D53: Сыр порциями | E53: 10 | G53: 35 | H53: 2.63 | I53: 2.66
B54: мучные или кондитерские изделия
B55: фрукты | C55: № 338/2015г | D55: Плоды свежие (яблоки) | E55: 120 | G55: 56.00 | H55: 0.48 | I55: 0.48 | J55: 11.76
B56: кисломолочный продукт
A57: ИТОГО | E57: =SUM(E49:E55) -> 543 | F57: 62.10 | G57: =SUM(G49:G55) -> 547 | H57: =SUM(H49:H55) -> 19.74 | I57: =SUM(I49:I55) -> 19.89 | J57: =SUM(J49:J55) -> 70.54

Sheet 1 неделя каши
A1: Школа | B1: - | E1: Отд./корп | I1: День
A3: Прием пищи | B3: Раздел | C3: № рец. | D3: Блюдо | E3: Выход, г | F3: Цена | G3: Калорийность | H3: Белки | I3: Жиры | J3: Углеводы
A4: Завтрак | B4: гор.блюдо | C4: № 173/015 г | D4: Каша вязкая молочная из рисовой и пшённой крупы с маслом | E4: 155 | G4: 142.00 | H4: 5.96 | I4: 10.32 | J4: 6.34
A5: понедельник | B5: напиток | C5: № 382/2015 г | D5: Какао с молоком | E5: 200 | G5: 145.00 | H5: 3.97 | I5: 2.10 | J5: 25.16
B6: хлеб (батон) | D6: Батон | E6: 25 | G6: 66.00 | H6: 1.88 | I6: 0.72 | J6: 12.85
B7: гарнир
B8: холодные закуски | C8: № 15/2015 г | D8: Сыр порциями | E8: 10 | G8: 35.00 | H8: 2.63 | I8: 2.66 | J8: 0.00
B9: мучные или кондитерские изделия | C9: ТТК 2019 г | D9: Блинчики со сгущенным молоком | E9: 65 | G9: 101.00 | H9: 2.80 | I9: 3.10 | J9: 18.00
B10: фрукты | C10: № 338/2015 г | D10: Плоды свежие (яблоки) | E10: 120 | G10: 56.00 | H10: 0.48 | I10: 0.48 | J10: 11.76
B11: кисломолочный продукт
A12: ИТОГО | E12: =E4+E5+E6+E8+E9+E10 -> 575 | F12: 62.10 | G12: =G4+G5+G6+G8+G9+G10 -> 545.00 | H12: =H4+H5+H6+H8+H9+H10 -> 17.72 | I12: =I4+I5+I6+I8+I9+I10 -> 19.38 | J12: =J4+J5+J6+J8+J9+J10 -> 74.11
A13: Завтрак | B13: гор.блюдо | C13: ТТК 2019 г | D13: Макароны отварные с сыром, маслом | E13: 185 | G13: 184.00 | H13: 11.82 | I13: 6.47 | J13: 19.58
A14: вторник | B14: напиток | C14: № 699/2004 г | D14: Напиток лимонный | E14: 200 | G14: 101.00 | H14: 0.14 | I14: 0.02 | J14: 24.43
B15: хлеб (батон) | D15: Батон | E15: 30 | G15: 79.00 | H15: 2.25 | I15: 0.87 | J15: 15.42
B16: гарнир
B17: холодные закуски | C17: № 14/2015 г | D17: Масло сливочное порциями | E17: 10 | G17: 66.00 | H17: 0.08 | I17: 7.25 | J17: 0.13
B18: мучные или кондитерские изделия | C18: ТТК 2019 г | D18: Печенье | E18: 30 | G18: 100.00 | H18: 2.42 | I18: 4.60 | J18: 10.50
B19: фрукты | C19: № 338/2015 г | D19: Плоды свежие (яблоки) | E19: 120 | G19: 56.00 | H19: 0.48 | I19: 0.48 | J19: 11.76
B20: кисломолочный продукт
A21: ИТОГО | E21: =E13+E14+E15+E16+E17+E18+E19 -> 575 | F21: 62.10 | G21: =G13+G14+G15+G16+G17+G18+G19 -> 586.00 | H21: =H13+H14+H15+H16+H17+H18+H19 -> 17.19 | I21: 19.69 | J21: 81.82
A22: Завтрак | B22: гор.блюдо | C22: №173/2015 г | D22: Каша вязкая молочная из манной крупы с маслом | E22: 155 | G22: 187.00 | H22: 5.72 | I22: 5.08 | J22: 29.64
A23: среда | B23: напиток | C23: ТТК 2021 г | D23: Напиток из шиповника | E23: 200 | G23: 41.00 | H23: 0.01 | I23: 0.00 | J23: 10.17
B24: хлеб (батон) | D24: Батон | E24: 25 | G24: 66.00 | H24: 1.88 | I24: 0.72 | J24: 12.85
B25: гарнир
B26: холодные закуски
B27: мучные или кондитерские изделия или блюда из творога | C27: ТТК 2021 г | D27: Сырники "Классические" со сгущённым молоком | E27: 75 | G27: 223.00 | H27: 9.16 | I27: 10.99 | J27: 21.78
B28: фрукты | C28: № 338/ 2015 г | D28: Плоды свежие (яблоки) | E28: 120 | G28: 56.00 | H28: 0.48 | I28: 0.48 | J28: 11.76
B29: кисломолочный продукт
A30: ИТОГО | E30: =E22+E23+E24+E27+E28 -> 575 | F30: 62.10 | G30: =G22+G23+G24+G27+G28 -> 573.00 | H30: =H22+H23+H24+H27+H28 -> 17.25 | I30: =I22+I23+I24+I27+I28 -> 17.27 | J30: =J22+J23+J24+J27+J28 -> 86.20
A31: Завтрак | B31: гор.блюдо | C31: № 173/2015 г | D31: Каша вязкая молочная из гречневой крупы с маслом | E31: 155 | G31: 237.00 | H31: 9.21 | I31: 11.01 | J31: 25.28
A32: четверг | B32: напиток | C32: № 630/1996 г | D32: Чай с молоком | E32: 208 | G32: 59.00 | H32: 1.52 | I32: 0.75 | J32: 10.39
B33: хлеб (батон) | D33: Батон | E33: 25 | G33: 66.00 | H33: 1.87 | I33: 0.72 | J33: 12.85
B34: гарнир
B35: холодные закуски
B36: мучные или кондитерские изделия | C36: ТТК 2019 г | D36: Блинчики со сгущённым молоком | E36: 115 | G36: 147.00 | H36: 3.91 | I36: 3.37 | J36: 25.05
B37: фрукты | C37: № 338/ 2015 г | D37: Плоды свежие (яблоки) | E37: 120 | G37: 56.00 | H37: 0.48 | I37: 0.48 | J37: 11.76
B38: кисломолочный продукт
A39: ИТОГО | E39: =E31+E32+E33+E36+E37 -> 623 | F39: 62.10 | G39: =G31+G32+G33+G36+G37 -> 565.00 | H39: =H31+H32+H33+H36+H37 -> 16.99 | I39: =I31+I32+I33+I36+I37 -> 16.33 | J39: =J31+J32+J33+J36+J37 -> 85.33
A40: Завтрак | B40: гор.блюдо | C40: ТТК 2019 г | D40: Пудинг шоколадный | E40: 150 | G40: 248 | H40: 15.11 | I40: 10.85 | J40: 22.61
A41: пятница | B41: напиток | C41: № 699/2004 г | D41: Напиток лимонный | E41: 200 | G41: 101 | H41: 0.14 | I41: 0.01 | J41: 24.43
B42: хлеб (батон) | D42: Батон | E42: 30 | G42: 79.00 | H42: 2.25 | I42: 0.87 | J42: 15.42
B43: гарнир
B44: холодные закуски | C44: № 14/2015 г | D44: Масло сливочное порциями | E44: 10 | G44: 66 | H44: 0.08 | I44: 7.25 | J44: 0.13
B45: мучные или кондитерские изделия
B46: фрукты | C46: № 338/ 2015 г | D46: Плоды свежие (яблоки) | E46: 120 | G46: 56 | H46: 0.48 | I46: 0.48 | J46: 11.76
B47: кисломолочный продукт
A48: ИТОГО | E48: =E41+E42+E44+E40+E46 -> 510 | F48: 62.10 | G48: =G41+G42+G44+G40+G46 -> 550 | H48: =H41+H42+H44+H40+H46 -> 18.06 | I48: =I41+I42+I44+I40+I46 -> 19.46 | J48: =J41+J42+J44+J40+J46 -> 74.35
A49: Завтрак | B49: гор.блюдо | C49: № 173/2015 г | D49: Каша вязкая молочная из рисовой крупы с маслом | E49: 155 | G49: 150 | H49: 5.50 | I49: 6.10 | J49: 15.55
A50: суббота | B50: напиток | C50: ТТК 2021 г | D50: Напиток из шиповника | E50: 200 | G50: 41 | H50: 0.01 | I50: 0.00 | J50: 10.17
B51: хлеб (батон) | D51: Батон | E51: 25 | G51: 66.00 | H51: 1.87 | I51: 0.72 | J51: 12.85
B52: гарнир
B53: холодные закуски | C53: № 15/2015 г | D53: Сыр порциями | E53: 20 | G53: 70 | H53: 5.26 | I53: 5.32 | J53: 0
B54: фрукты
B55: мучные или кондитерские изделия | C55: ТТК 2019 г | D55: Печенье | E55: 30.00 | G55: 133.00 | H55: 2.42 | I55: 4.60 | J55: 20.50
B56: кисломолочный продукт | D56: Йогурт питьевой обогащенный 2,8 % ( в ассортименте) ДМК | E56: 125 | G56: 105 | H56: 3.50 | I56: 3.50 | J56: 14.60
A57: ИТОГО | E57: =E49+E50+E51+E56+E53+E55 -> 555.00 | F57: 62.10 | G57: =G49+G50+G51+G56+G53+G55 -> 565 | H57: =H49+H50+H51+H56+H53+H55 -> 18.56 | I57: =I49+I50+I51+I56+I53+I55 -> 20.24 | J57: =J49+J50+J51+J56+J53+J55 -> 73.67

Sheet 2 неделя каши
A1: Школа | B1: МБОУ "Гимназия №125" Советского района г.Казани | E1: Отд./корп | I1: День | J1: 2022-10-27
A3: Прием пищи | B3: Раздел | C3: № рец. | D3: Блюдо | E3: Выход, г | F3: Цена | G3: Калорийность | H3: Белки | I3: Жиры | J3: Углеводы
A4: Завтрак | B4: гор.блюдо | C4: №173/2015г | D4: Каша вязкая молочная из рисовой и пшенной крупы с маслом | E4: 155 | G4: 142.00 | H4: 5.96 | I4: 10.32 | J4: 6.34
A5: четверг | B5: напиток | C5: № 348/2015г | D5: Компот из плодов сушеных (урюк) | E5: 200 | G5: 87.00 | H5: 1.00 | I5: 0.08 | J5: 20.56
B6: хлеб (батон) | D6: Батон | E6: 30 | G6: 79.00 | H6: 2.25 | I6: 0.87 | J6: 15.42
B7: гарнир
B8: холодные закуски
B9: мучные или кондитерские изделия | C9: ТТК 2019 г | D9: Блинчики со сгущенным молоком | E9: 115 | G9: 221.00 | H9: 9.20 | I9: 7.10 | J9: 30.00
B10: фрукты | C10: № 338/ 2015 г | D10: Плоды свежие (яблоки) | E10: 120 | G10: 56.00 | H10: 0.48 | I10: 0.48 | J10: 11.76
B11: кисломолочный продукт
A12: ИТОГО | E12: =E4+E5+E6+E9+E10 -> 620 | F12: 62.10 | G12: =G4+G5+G6+G9+G10 -> 585.00 | H12: =H4+H5+H6+H9+H10 -> 18.89 | I12: =I4+I5+I6+I9+I10 -> 18.85 | J12: =J4+J5+J6+J9+J10 -> 84.08
